bitfinex/quotes_SOLUSD_20250517
["timestamp","ask_amount","ask_price","bid_price","bid_amount"]
[1747506210444,22.46,166.84,166.81,2.2259002]
[1747506211247,22.46,166.84,166.8,2.2259002]
[1747506211458,28.45381668,166.84,166.8,2.2259002]
[1747506211639,43.43823288,166.84,166.8,2.2259002]
[1747506212129,43.43823288,166.84,166.78,4.24881532]
[1747506214546,43.43823288,166.84,166.75,3.42263408]
[1747506215252,43.43823288,166.84,166.76,2.22635258]
[1747506215951,43.43823288,166.84,166.75,3.42263408]
[1747506216165,99.40706529,166.84,166.75,3.42263408]
[1747506216350,7.8434,166.83,166.76,3.42263408]
[1747506217267,5.99448507,166.82,166.75,5.99684907]
[1747506217634,5.99448507,166.82,166.76,2.22527701]
[1747506218141,5.99448507,166.82,166.77,2.22527701]
[1747506218555,7.8434,166.83,166.77,78.72154286]
[1747506218556,1.5468,166.83,166.77,78.72154286]
[1747506218757,7.54102273,166.83,166.78,2.22527701]
[1747506219862,7.54102273,166.83,166.77,76.49625221]
[1747506219863,7.54102273,166.83,166.79,2.22527701]
[1747506220652,7.54102273,166.83,166.77,70.5]
[1747506221460,7.54102273,166.83,166.78,2.22498479]
[1747506221643,22.52633712,166.83,166.78,2.22498479]
[1747506222053,22.52633712,166.83,166.75,26.0]
[1747506222247,22.52633712,166.83,166.73,76.49763152]
[1747506222455,22.52633712,166.83,166.73,70.5]
[1747506222767,22.52633712,166.83,166.74,2.22525473]
[1747506222937,6.2966,166.82,166.74,2.22525473]
[1747506223764,6.2966,166.82,166.75,2.22525473]
[1747506224661,5.99484443,166.81,166.75,1.22525473]
[1747506224971,20.98195551,166.81,166.75,1.22525473]
[1747506225349,20.98195551,166.81,166.73,74.77182226]
[1747506226361,20.98195551,166.81,166.73,70.5]
[1747506226737,20.98195551,166.81,166.71,4.27182226]
[1747506227552,1.6279,166.77,166.71,4.27182226]
[1747506227860,44.7,166.76,166.71,4.27182226]
[1747506228871,5.99700149,166.75,166.69,3.42027327]
[1747506229366,5.99700149,166.75,166.69,9.41936622]
[1747506229873,44.7,166.76,166.69,10.61903983]
[1747506230052,44.7,166.76,166.7,22.06992213]
[1747506230252,44.7,166.76,166.7,48.06992213]
[1747506231077,44.7,166.76,166.71,5.9984404]
[1747506231645,44.7,166.76,166.72,3.42027327]
[1747506232066,50.69669881,166.76,166.72,3.42027327]
[1747506233436,50.69669881,166.76,166.7,26.0]
[1747506234055,50.69669881,166.76,166.7,31.99873453]
[1747506234878,50.69669881,166.76,166.71,3.41825318]
[1747506236171,50.69669881,166.76,166.7,31.99873453]
[1747506237374,50.69669881,166.76,166.71,2.22513179]
[1747506238176,22.36,166.76,166.71,5.99830465]
[1747506238874,22.36,166.76,166.72,5.64119511]
[1747506239675,28.35674398,166.76,166.72,3.41668601]
[1747506240174,28.35674398,166.76,166.71,70.5]
[1747506240956,43.34834868,166.76,166.71,70.5]
[1747506242087,28.35674398,166.76,166.71,70.5]
[1747506242258,7.62431415,166.77,166.71,76.49827878]
[1747506243075,7.62431415,166.77,166.72,2.2251779]
[1747506243578,7.62431415,166.77,166.72,8.22314543]
[1747506243773,7.62431415,166.77,166.72,2.2251779]
[1747506243961,7.62431415,166.77,166.73,2.2251779]
[1747506245241,7.62431415,166.77,166.71,70.5]
[1747506245975,7.62431415,166.77,166.72,3.41947821]
[1747506247253,22.36,166.79,166.73,18.64964886]
[1747506247776,28.35560958,166.79,166.73,18.64964886]
[1747506247974,28.35560958,166.79,166.74,2.2271335]
[1747506248467,28.35560958,166.79,166.74,8.22447144]
[1747506248652,28.35560958,166.79,166.75,2.2271335]
[1747506249273,22.36,166.79,166.74,76.49732346]
[1747506250371,22.36,166.79,166.75,18.64964886]
[1747506250577,5.9945071,166.82,166.75,18.64964886]
[1747506250781,5.9945071,166.82,166.76,2.22689715]
[1747506251580,20.98071978,166.82,166.77,5.6471635]
[1747506252365,20.98071978,166.82,166.77,3.42026635]
[1747506252755,20.98071978,166.82,166.74,70.5]
[1747506253279,5.9945071,166.82,166.75,20.87846708]
[1747506253983,5.9945071,166.82,166.76,2.22881822]
[1747506254178,5.9945071,166.82,166.76,5.65214914]
[1747506254484,5.9945071,166.82,166.76,76.15214914]
[1747506254698,20.98071978,166.82,166.76,76.15214914]
[1747506254993,20.98071978,166.82,166.76,73.92333092]
[1747506255375,20.98071978,166.82,166.76,70.5]
[1747506257272,20.98071978,166.82,166.74,76.49729041]
[1747506257790,20.98071978,166.82,166.75,2.23089419]
[1747506258592,20.98071978,166.82,166.76,2.23089419]
[1747506258977,20.98071978,166.82,166.77,3.42743917]
[1747506260296,20.98071978,166.82,166.74,70.5]
[1747506260506,22.24,166.81,166.73,30.27182226]
[1747506260796,22.24,166.81,166.74,2.23155559]
[1747506261380,22.24,166.81,166.75,3.42814377]
[1747506261693,22.24,166.81,166.75,5.65969936]
[1747506262187,5.99520383,166.8,166.76,2.23155559]
[1747506262792,5.99520383,166.8,166.75,3.42814377]
[1747506263291,5.99520383,166.8,166.72,76.4980583]
[1747506263791,5.99520383,166.8,166.73,2.23172519]
[1747506264191,5.99520383,166.8,166.74,3.42923785]
[1747506264578,5.99520383,166.8,166.75,2.23172519]
[1747506265471,5.99520383,166.8,166.76,2.23172519]
[1747506265670,5.99520383,166.8,166.76,5.66096304]
[1747506266293,5.99520383,166.8,166.76,3.42923785]
[1747506266468,5.99520383,166.8,166.73,80.76947761]
[1747506266998,5.99520383,166.8,166.74,2.23243875]
[1747506267588,5.99520383,166.8,166.75,2.23243875]
[1747506267795,5.99520383,166.8,166.75,5.66196014]
[1747506268494,5.99520383,166.8,166.76,2.23243875]
[1747506269496,5.99520383,166.8,166.74,2.23243875]
[1747506269993,5.99520383,166.8,166.74,8.22963913]
[1747506270178,5.99520383,166.8,166.75,2.23243875]
[1747506270879,5.99520383,166.8,166.75,8.22928229]
[1747506271090,5.99520383,166.8,166.76,2.23243875]
[1747506271694,5.99520383,166.8,166.77,5.66167681]
[1747506272067,5.99520383,166.8,166.78,2.23243875]
[1747506272894,5.99520383,166.8,166.77,3.42923806]
[1747506273395,20.98321342,166.8,166.75,70.5]
[1747506273566,7.5547,166.79,166.75,70.5]
[1747506273775,7.5547,166.79,166.73,4.27182226]
[1747506274478,5.99592277,166.78,166.73,4.27182226]
[1747506274697,22.16,166.77,166.73,4.27182226]
[1747506275390,22.16,166.77,166.71,3.43302773]
[1747506275789,22.16,166.77,166.72,2.23453533]
[1747506276295,5.99664188,166.76,166.72,2.23453533]
[1747506276771,5.99664188,166.76,166.69,80.77098002]
[1747506276971,20.98824658,166.76,166.69,4.27182226]
[1747506277409,22.24,166.75,166.7,2.2355272]
[1747506278305,22.24,166.75,166.68,26.0]
[1747506278804,5.99736116,166.74,166.68,26.0]
[1747506279188,5.99736116,166.74,166.69,2.23490088]
[1747506279702,5.99736116,166.74,166.7,2.23490088]
[1747506280376,5.99736116,166.74,166.71,2.23490088]
[1747506281008,5.99736116,166.74,166.69,2.23490088]
[1747506282209,20.99076406,166.74,166.69,2.23490088]
[1747506283005,20.99076406,166.74,166.67,2.23490088]
[1747506285020,20.99076406,166.74,166.68,3.43197204]
[1747506286433,20.99076406,166.74,166.66,96.5]
[1747506287233,5.99736116,166.74,166.68,18.64964886]
[1747506287522,28.23709061,166.75,166.69,3.42895081]
[1747506287889,28.23709061,166.75,166.7,2.23322698]
[1747506288406,28.23709061,166.75,166.71,2.23322698]
[1747506289121,7.5547,166.79,166.72,26.0]
[1747506289421,5.99597075,166.78,166.73,2.23322698]
[1747506289993,5.99597075,166.78,166.74,2.23322698]
[1747506290698,5.99597075,166.78,166.72,102.49791406]
[1747506291522,5.99597075,166.78,166.73,2.23093675]
[1747506292020,5.99597075,166.78,166.74,3.42662454]
[1747506293702,5.99597075,166.78,166.72,102.49805963]
[1747506293902,5.99597075,166.78,166.72,96.5]
[1747506294651,5.99597075,166.78,166.73,2.23113354]
[1747506295399,5.99597075,166.78,166.74,2.23113354]
[1747506295930,20.98577768,166.78,166.74,2.23113354]
[1747506296112,20.98577768,166.78,166.72,96.5]
[1747506296304,20.98577768,166.78,166.72,26.0]
[1747506296921,20.98577768,166.78,166.73,2.23204697]
[1747506297623,20.98577768,166.78,166.7,100.77182226]
[1747506298337,20.98577768,166.78,166.71,5.67152105]
[1747506299136,20.98577768,166.78,166.72,2.23665745]
[1747506300235,20.98577768,166.78,166.71,2.23665745]
[1747506300931,20.98577768,166.78,166.72,2.23665745]
[1747506301927,50.96539154,166.78,166.72,2.23665745]
[1747506302132,50.96539154,166.78,166.69,4.27182226]
[1747506302133,50.46539154,166.78,166.69,4.27182226]
[1747506302326,6.3401,166.77,166.69,4.27182226]
[1747506302630,51.0187571,166.77,166.69,7.70823575]
[1747506303619,20.98824658,166.76,166.69,7.70823575]
[1747506303817,50.97145598,166.76,166.69,7.70823575]
[1747506304216,50.97145598,166.76,166.66,3.43641349]
[1747506304723,50.97145598,166.76,166.67,2.23758805]
[1747506305326,50.97145598,166.76,166.66,3.43641349]
[1747506306255,1.6038,166.75,166.66,3.43641349]
[1747506306434,44.18,166.74,166.66,3.43641349]
[1747506307320,44.18,166.74,166.63,96.5]
[1747506307321,44.18,166.74,166.64,3.43641349]
[1747506307550,20.99202302,166.73,166.64,3.43641349]
[1747506307841,6.5321,166.72,166.64,3.43641349]
[1747506308014,26.0,166.71,166.64,3.43641349]
[1747506308415,1.6038,166.7,166.64,3.43641349]
[1747506308849,1.6038,166.7,166.62,4.27182226]
[1747506309530,5.99916011,166.69,166.62,4.27182226]
[1747506310016,5.99916011,166.69,166.63,2.23478152]
[1747506310215,20.9970604,166.69,166.63,2.23478152]
[1747506310647,20.9970604,166.69,166.64,2.23478152]
[1747506311442,20.9970604,166.69,166.62,70.5]
[1747506311741,20.9970604,166.69,166.62,76.50166682]
[1747506311935,20.9970604,166.69,166.62,70.5]
[1747506312133,5.99916011,166.69,166.62,76.50167194]
[1747506312341,5.9984404,166.71,166.64,0.4616]
[1747506312645,5.9984404,166.71,166.66,18.64964886]
[1747506313036,5.9984404,166.71,166.67,2.23419475]
[1747506313341,5.99772086,166.73,166.67,2.23419475]
[1747506313751,5.99772086,166.73,166.68,2.23419475]
[1747506314252,5.99772086,166.73,166.68,73.93391454]
[1747506314427,5.99772086,166.73,166.69,2.23419475]
[1747506315447,22.14,166.74,166.69,18.64964886]
[1747506316049,22.14,166.74,166.7,2.234653]
[1747506316930,28.13737444,166.74,166.71,2.234653]
[1747506317357,43.13077734,166.74,166.71,2.234653]
[1747506318151,43.13077734,166.74,166.68,70.5]
[1747506319661,26.0,166.67,166.65,4.27182226]
[1747506319858,26.0,166.62,166.57,4.29578109]
[1747506320334,26.0,166.61,166.57,4.29578109]
[1747506320654,44.02,166.6,166.57,4.29578109]
[1747506321224,44.02,166.59,166.57,4.29578109]
[1747506321436,22.0,166.58,166.57,4.29578109]
[1747506322248,22.0,166.58,166.52,8.54364453]
[1747506322453,43.24716004,166.61,166.52,8.54364453]
[1747506322454,21.00714242,166.61,166.53,1.20076442]
[1747506322649,44.02,166.6,166.53,1.20076442]
[1747506323079,21.00714242,166.61,166.54,44.64964886]
[1747506323080,6.00204069,166.61,166.54,44.64964886]
[1747506323231,21.98,166.6,166.56,18.64964886]
[1747506323857,27.98204069,166.61,166.56,18.64964886]
[1747506324349,21.98,166.61,166.57,1.20041325]
[1747506324561,50.22184441,166.62,166.57,1.20041325]
[1747506325032,50.22184441,166.62,166.56,18.64964886]
[1747506328355,21.98,166.61,166.56,19.85010913]
[1747506328541,44.22001762,166.62,166.56,96.35379725]
[1747506329043,50.22178267,166.62,166.56,96.35379725]
[1747506329244,50.22178267,166.62,166.56,90.35010913]
[1747506330855,44.22001762,166.62,166.56,96.35387331]
[1747506331050,44.20001762,166.62,166.56,96.35387331]
[1747506331253,44.20001762,166.62,166.58,18.64964886]
[1747506331966,44.20001762,166.62,166.57,24.65304382]
[1747506332262,44.20001762,166.62,166.57,95.15304382]
[1747506332447,44.20001762,166.62,166.57,96.35329362]
[1747506332645,50.20186097,166.62,166.57,90.34989866]
[1747506332850,50.20186097,166.62,166.57,89.14964886]
[1747506333054,50.20186097,166.62,166.57,70.5]
[1747506338175,65.20606214,166.62,166.57,70.5]
[1747506338378,65.20606214,166.62,166.54,96.5]
[1747506342192,43.24606214,166.62,166.55,18.64964886]
[1747506342477,21.92,166.61,166.55,18.64964886]
[1747506343500,21.92,166.61,166.54,96.5]
[1747506344292,6.00240096,166.6,166.54,96.5]
[1747506346590,1.5702,166.59,166.51,70.5]
[1747506347779,6.2682,166.58,166.51,70.5]
[1747506348664,6.00348201,166.57,166.51,71.70093548]
[1747506348868,21.9,166.56,166.51,70.5]
[1747506350907,6.00420294,166.55,166.51,70.5]
[1747506358705,27.90390261,166.56,166.51,70.5]
[1747506358882,21.9,166.56,166.51,77.70659738]
[1747506359075,6.0038511,166.56,166.51,71.70099183]
[1747506359283,21.88,166.57,166.52,18.64964886]
[1747506359503,7.57318563,166.59,166.54,18.64964886]
[1747506359802,1.5702,166.59,166.54,18.64964886]
[1747506359976,23.4502,166.59,166.54,18.64964886]
[1747506360899,29.4329709,166.59,166.54,24.65414266]
[1747506361612,28.55091762,166.62,166.56,18.64964886]
[1747506361613,22.24001762,166.62,166.56,18.64964886]
[1747506361774,44.10001762,166.62,166.57,1.2004123]
[1747506361977,50.10175741,166.62,166.57,1.2004123]
[1747506362217,21.86,166.61,166.56,89.14964886]
[1747506362594,21.86,166.61,166.56,90.35006956]
[1747506362878,21.86,166.61,166.57,8.23919117]
[1747506363404,21.86,166.61,166.58,2.23583713]
[1747506363700,22.24001762,166.62,166.58,2.23583713]
[1747506363898,44.10001762,166.62,166.58,2.23583713]
[1747506364207,22.24001762,166.62,166.58,2.23583713]
[1747506364392,44.10001762,166.62,166.58,2.23583713]
[1747506364595,22.24001762,166.62,166.58,3.43621114]
[1747506365106,22.24001762,166.62,166.58,2.23583713]
[1747506365300,22.24001762,166.62,166.59,2.23583713]
[1747506366504,22.24001762,166.62,166.58,2.23583713]
[1747506367010,22.24001762,166.62,166.59,18.64964886]
[1747506367381,22.24001762,166.62,166.58,35.4392629]
[1747506367987,22.24001762,166.62,166.59,2.23583713]
[1747506368691,22.24001762,166.62,166.59,20.88548599]
[1747506369017,22.24001762,166.62,166.6,2.23583713]
[1747506371495,22.24001762,166.62,166.59,2.23583713]
[1747506373214,22.24001762,166.62,166.59,20.88548599]
[1747506373719,22.24001762,166.62,166.59,26.88816796]
[1747506374210,22.24001762,166.62,166.59,97.38816796]
[1747506374600,22.24001762,166.62,166.6,2.23583713]
[1747506375206,22.24001762,166.62,166.6,8.23816708]
[1747506375813,22.24001762,166.62,166.61,2.23583713]
[1747506376426,22.24001762,166.62,166.61,8.23787782]
[1747506377309,22.24001762,166.62,166.61,78.73787782]
[1747506378215,22.24001762,166.62,166.61,72.73583713]
[1747506379524,22.24001762,166.62,166.61,97.38752668]
[1747506379695,23.3519,166.69,166.62,18.64964886]
[1747506380011,43.6,166.69,166.63,3.435645]
[1747506380326,43.6,166.69,166.63,1.19980787]
[1747506381126,21.8,166.69,166.65,18.64964886]
[1747506381811,27.79923828,166.69,166.65,18.64964886]
[1747506383140,1.5863,166.73,166.65,110.15154214]
[1747506383430,10.5475495,166.75,166.67,44.64964886]
[1747506383750,10.5475495,166.75,166.68,1.1994403]
[1747506383918,10.5475495,166.75,166.68,3.42961308]
[1747506384434,21.78,166.76,166.71,18.64964886]
[1747506384837,7.58260494,166.77,166.71,18.64964886]
[1747506385127,29.34260494,166.77,166.71,18.64964886]
[1747506385327,29.34260494,166.77,166.71,24.64803376]
[1747506385735,29.34260494,166.77,166.7,96.5]
[1747506386234,44.3333107,166.77,166.7,70.5]
[1747506389419,44.3333107,166.77,166.67,70.5]
[1747506391229,44.3333107,166.77,166.67,76.49984174]
[1747506391430,7.58260494,166.77,166.7,26.0]
[1747506391629,21.74,166.76,166.7,26.0]
[1747506391836,27.7368678,166.76,166.7,31.99870925]
[1747506393246,21.74,166.76,166.7,31.99870925]
[1747506393918,7.58267519,166.77,166.7,31.99870925]
[1747506394220,29.30267519,166.77,166.7,31.99870925]
[1747506394419,7.58267519,166.77,166.7,31.99870925]
[1747506394742,29.30267519,166.77,166.7,31.99870925]
[1747506395240,29.30267519,166.77,166.7,102.49870925]
[1747506395630,23.3063,166.77,166.71,25.84722341]
[1747506395830,23.3063,166.77,166.71,96.34722341]
[1747506396846,1.5863,166.77,166.71,96.34722341]
[1747506398150,27.71585733,166.79,166.71,96.34722341]
[1747506399448,27.71585733,166.79,166.71,90.34905198]
[1747506399662,42.70476553,166.79,166.71,70.5]
[1747506410252,42.70476553,166.79,166.69,95.14867446]
[1747506410859,5.9962823,166.77,166.69,95.14867446]
[1747506412549,5.9962823,166.77,166.7,1.19951378]
[1747506413547,5.9962823,166.77,166.7,7.19828012]
[1747506413864,27.6362823,166.77,166.7,7.19828012]
[1747506415270,6.3528,166.76,166.69,70.5]
[1747506415646,5.99700149,166.75,166.69,70.5]
[1747506415843,20.98950523,166.75,166.69,70.5]
[1747506416362,20.98950523,166.75,166.66,102.49991426]
[1747506416551,20.98950523,166.75,166.67,2.22910308]
[1747506417868,20.98950523,166.75,166.66,102.49991426]
[1747506418373,12.34956218,166.76,166.67,18.64964886]
[1747506418539,12.34956218,166.76,166.66,103.69963142]
[1747506418540,5.99676218,166.76,166.69,18.64964886]
[1747506418875,27.63676218,166.76,166.7,2.23023112]
[1747506419165,27.63676218,166.76,166.7,72.73023112]
[1747506419541,27.63676218,166.76,166.71,5.9984404]
[1747506420341,27.63676218,166.76,166.7,70.5]
[1747506421078,1.5675,166.75,166.7,70.5]
[1747506421376,1.5675,166.75,166.65,4.28986187]
[1747506421679,20.99202302,166.73,166.65,74.78986187]
[1747506421841,20.99202302,166.73,166.65,80.79034146]
[1747506422038,27.61772086,166.73,166.66,20.88414154]
[1747506422243,27.61772086,166.73,166.66,22.083975]
[1747506422948,27.61772086,166.73,166.67,8.23425911]
[1747506423877,23.2475,166.75,166.67,8.23425911]
[1747506423878,21.62,166.75,166.69,18.64964886]
[1747506424044,21.62,166.75,166.69,89.14964886]
[1747506424749,21.62,166.75,166.7,2.23449268]
[1747506425158,27.61707432,166.75,166.7,2.23449268]
[1747506425857,27.61707432,166.75,166.71,2.23449268]
[1747506426774,27.61707432,166.75,166.72,2.23449268]
[1747506427345,27.61707432,166.75,166.7,2.23449268]
[1747506428344,27.61707432,166.75,166.71,2.23449268]
[1747506429472,27.61707432,166.75,166.7,2.23449268]
[1747506429950,27.61707432,166.75,166.71,2.23449268]
[1747506430275,21.58,166.74,166.71,2.23449268]
[1747506430979,21.58,166.74,166.69,2.23449268]
[1747506431659,5.99772086,166.73,166.69,2.23449268]
[1747506432459,5.99772086,166.73,166.68,2.23449268]
[1747506433064,5.99772086,166.73,166.69,2.23449268]
[1747506433980,5.99772086,166.73,166.68,2.23449268]
[1747506434375,27.57742946,166.74,166.68,2.23449268]
[1747506434686,5.99742946,166.74,166.68,2.23449268]
[1747506434863,27.57742946,166.74,166.69,2.23449268]
[1747506435264,21.58,166.73,166.69,2.23449268]
[1747506435446,21.58,166.73,166.68,5.99929214]
[1747506435447,21.58,166.73,166.7,2.23449268]
[1747506436182,27.6655,166.78,166.71,20.88414154]
[1747506436354,27.6655,166.78,166.71,91.38414154]
[1747506436355,21.56,166.78,166.71,91.38414154]
[1747506437080,21.56,166.78,166.72,2.23449268]
[1747506437581,21.56,166.78,166.73,5.99772086]
[1747506437755,21.56,166.78,166.73,8.23221354]
[1747506438384,21.56,166.78,166.74,2.23449268]
[1747506439181,21.56,166.78,166.75,2.23449268]
[1747506439376,21.56,166.78,166.75,8.2314288]
[1747506439581,21.56,166.78,166.75,2.23449268]
[1747506440074,21.56,166.78,166.76,2.23449268]
[1747506440779,21.56,166.78,166.74,2.23449268]
[1747506440982,21.56,166.78,166.74,8.23180233]
[1747506441595,21.56,166.78,166.75,2.23449268]
[1747506442289,21.56,166.78,166.76,2.23449268]
[1747506442588,21.54,166.8,166.76,2.23449268]
[1747506443184,21.54,166.8,166.75,2.23449268]
[1747506443501,6.0787,166.82,166.75,8.23132854]
[1747506443788,21.54,166.82,166.76,20.88414154]
[1747506444591,21.54,166.82,166.77,2.23449268]
[1747506445387,5.99484443,166.81,166.77,2.23449268]
[1747506445586,27.51484443,166.81,166.75,76.49683586]
[1747506446589,27.51484443,166.81,166.76,2.23409811]
[1747506447088,27.51484443,166.81,166.77,2.23409811]
[1747506447988,27.51484443,166.81,166.76,5.99651105]
[1747506448583,29.69312615,166.83,166.76,24.64615991]
[1747506448584,5.99448507,166.82,166.76,24.64615991]
[1747506448789,28.16232615,166.83,166.76,24.64615991]
[1747506448790,28.16232615,166.83,166.77,18.64964886]
[1747506449284,28.16232615,166.83,166.77,89.14964886]
[1747506449503,34.15647794,166.83,166.78,2.23117007]
[1747506450080,34.15647794,166.83,166.79,2.23117007]
[1747506450490,28.16232615,166.83,166.79,2.23117007]
[1747506450788,28.16232615,166.83,166.78,5.99571766]
[1747506453480,34.15657745,166.83,166.78,5.99571766]
[1747506453901,28.16232615,166.83,166.78,5.99571766]
[1747506454494,5.99448507,166.82,166.77,70.5]
[1747506455171,5.99448507,166.82,166.74,10.28687557]
[1747506455172,5.99448507,166.82,166.74,106.78687557]
[1747506455377,5.99448507,166.82,166.74,100.78986187]
[1747506455777,20.98069775,166.82,166.74,100.78986187]
[1747506455978,20.98069775,166.82,166.75,2.23007845]
[1747506456805,20.98069775,166.82,166.74,96.5]
[1747506457204,20.98069775,166.82,166.74,102.49724566]
[1747506458100,20.98069775,166.82,166.75,2.22988249]
[1747506458801,20.98069775,166.82,166.74,102.49724566]
[1747506459700,5.99448507,166.82,166.74,102.49724566]
[1747506460502,5.99448507,166.82,166.75,20.87916543]
[1747506460704,55.61646332,166.83,166.75,22.07829208]
[1747506461295,55.61646332,166.83,166.76,2.22951657]
[1747506461792,55.61646332,166.83,166.77,5.9962823]
[1747506463100,42.43945156,166.83,166.75,70.5]
[1747506464000,27.45413717,166.83,166.75,76.49674036]
[1747506464205,27.45413717,166.83,166.76,18.64964886]
[1747506465206,27.45413717,166.83,166.76,24.64620143]
[1747506466407,27.45413717,166.83,166.75,70.5]
[1747506467805,42.43945156,166.83,166.75,70.5]
[1747506470206,27.45413717,166.83,166.75,76.49690259]
[1747506470710,27.45413717,166.83,166.76,2.22915368]
[1747506471413,5.99413717,166.83,166.76,8.2256305]
[1747506471591,21.42,166.82,166.77,2.22915368]
[1747506472487,21.42,166.82,166.77,8.22522553]
[1747506472688,27.41454385,166.82,166.77,8.22522553]
[1747506472911,27.41454385,166.82,166.78,2.22915368]
[1747506473809,27.41454385,166.82,166.77,76.49607185]
[1747506475516,27.41454385,166.82,166.78,2.23042116]
[1747506476516,27.41454385,166.82,166.79,2.23042116]
[1747506477190,27.41454385,166.82,166.78,2.23042116]
[1747506479419,21.4,166.82,166.78,2.23042116]
[1747506480615,1.6388,166.81,166.78,2.23042116]
[1747506481422,27.59451342,166.8,166.75,2.23042116]
[1747506482005,27.59451342,166.8,166.74,4.28986187]
[1747506482348,26.0,166.79,166.74,4.28986187]
[1747506482520,21.44,166.78,166.74,4.28986187]
[1747506482999,21.44,166.78,166.68,5.99952003]
[1747506483204,21.44,166.78,166.7,26.0]
[1747506483499,5.9962398,166.78,166.71,5.9984404]
[1747506483707,21.38,166.79,166.72,18.64964886]
[1747506483931,21.38,166.79,166.72,89.14964886]
[1747506484111,21.38,166.79,166.73,2.23668702]
[1747506484828,27.37570947,166.79,166.73,8.23424366]
[1747506485422,27.37570947,166.79,166.74,2.23668702]
[1747506485924,27.37570947,166.79,166.75,2.23668702]
[1747506486633,27.37570947,166.79,166.76,2.23668702]
[1747506487413,27.37570947,166.79,166.73,5.99755664]
[1747506488123,27.37570947,166.79,166.74,2.23563525]
[1747506488535,27.37570947,166.79,166.72,76.49793706]
[1747506488536,27.37570947,166.79,166.72,70.5]
[1747506489333,42.36461767,166.79,166.72,70.5]
[1747506489632,42.36461767,166.79,166.73,2.23572652]
[1747506490415,42.36461767,166.79,166.69,4.28986187]
[1747506491115,42.36461767,166.79,166.7,2.23540719]
[1747506492035,42.36461767,166.79,166.71,2.23540719]
[1747506492404,27.37570947,166.79,166.71,28.23540719]
[1747506492731,27.37570947,166.79,166.72,2.23540719]
[1747506493306,42.36461767,166.79,166.73,2.23540719]
[1747506493508,68.36461767,166.79,166.73,2.23540719]
[1747506494512,42.36461767,166.79,166.68,26.0]
[1747506494719,42.36461767,166.79,166.69,1.19939477]
[1747506494936,42.36461767,166.79,166.71,26.0]
[1747506494937,27.37570947,166.79,166.71,26.0]
[1747506495456,21.34,166.79,166.72,18.64964886]
[1747506495616,22.9788,166.81,166.75,26.0]
[1747506496134,21.44,166.83,166.77,18.64964886]
[1747506496338,21.44,166.83,166.78,5.99592277]
[1747506496845,21.34,166.84,166.79,2.23137216]
[1747506497139,27.33387741,166.84,166.79,2.23137216]
[1747506497530,27.33387741,166.84,166.78,5.99592277]
[1747506497531,27.33387741,166.84,166.8,2.23137216]
[1747506497734,5.99387741,166.84,166.8,2.23137216]
[1747506498344,5.99387741,166.84,166.78,5.99592277]
[1747506498555,27.6653,166.88,166.79,19.84850693]
[1747506498733,21.32,166.87,166.79,19.84850693]
[1747506499416,48.9853,166.88,166.79,19.84850693]
[1747506499721,5.99294944,166.87,166.8,5.99520383]
[1747506499938,5.99294944,166.87,166.8,8.22305513]
[1747506500541,48.63235888,166.88,166.81,22.07618814]
[1747506501240,1.5632,166.89,166.83,18.64964886]
[1747506501427,25.26176026,166.91,166.83,19.84813506]
[1747506501630,46.56176026,166.91,166.84,5.99376648]
[1747506501822,46.56176026,166.91,166.83,18.64964886]
[1747506502024,21.3,166.9,166.84,2.2278513]
[1747506502847,21.3,166.9,166.83,18.64964886]
[1747506503845,5.99197075,166.89,166.83,24.64369029]
[1747506504248,46.5615742,166.91,166.84,2.22319391]
[1747506504434,39.9232742,166.91,166.84,3.42167534]
[1747506505049,39.9232742,166.91,166.85,2.22319391]
[1747506505650,39.9232742,166.91,166.85,5.99340725]
[1747506506543,39.9232742,166.91,166.84,7.19213858]
[1747506506845,39.9232742,166.91,166.84,5.99365715]
[1747506508640,18.6232742,166.91,166.84,5.99365715]
[1747506508845,39.9032742,166.91,166.83,18.64964886]
[1747506509068,39.9032742,166.91,166.82,70.5]
[1747506509546,54.88140612,166.91,166.82,70.5]
[1747506509744,54.88140612,166.91,166.82,76.49426733]
[1747506510449,54.88140612,166.91,166.82,77.69283848]
[1747506512249,54.88140612,166.91,166.82,7.19283848]
[1747506513061,39.9032742,166.91,166.83,18.64964886]
[1747506514330,39.9032742,166.91,166.84,5.99376648]
[1747506514929,39.9032742,166.91,166.83,24.64365989]
[1747506517656,39.8632742,166.91,166.83,24.64365989]
[1747506518260,39.8632742,166.91,166.83,95.14365989]
[1747506521058,18.6232742,166.91,166.83,95.14365989]
[1747506521772,1.5646,166.93,166.87,18.64964886]
[1747506521928,1.5646,166.93,166.87,90.34779529]
[1747506522868,42.52,166.97,166.91,18.64964886]